[Event "10th Cesme Open-A 2024"]
[Site "Cesme"]
[Date "2024.06.23"]
[Round "1"]
[White "Tarlabasi, Emirhan"]
[Black "Yildiz, Serdar Murat"]
[Result "1/2-1/2"]
[ECO "E11"]
[WhiteElo "2303"]
[BlackElo "2026"]
[Annotator "RC"]
[PlyCount "185"]
[EventDate "2024.06.23"]
[EventType "swiss"]
[EventCountry "TUR"]
[SourceTitle "playchess.com"]
[Source "ChessBase"]
[SourceQuality "1"]
[TimeControl "5400+30"]

1. d4 {[%emt 0:01:00]} Nf6 {[%emt 0:01:00]} 2. Nf3 {[%emt 0:00:30]} e6 {[%emt 0:00:00]} 3. c4 {[%emt 0:03:30]} Bb4+ {[%emt 0:00:00]} 4. Bd2 {[%emt 0:02:30]} c5 {[%emt 0:00:30]} 5. Bxb4 {[%emt 0:04:30]} cxb4 {[%emt 0:00:30]} 6. Nbd2 {[%emt 0:00:30]} d6 {[%emt 0:06:30]} 7. g3 {[%emt 0:04:30]} O-O {[%emt 0:00:00]} 8. Bg2 {[%emt 0:00:00]} Nc6 {[%emt 0:02:00]} 9. O-O {[%emt 0:01:00]} Qe7 {[%emt 0:08:30]} 10. a3 {[%emt 0:06:30]} Bd7 {[%emt 0:12:30]} 11. Qb3 {[%emt 0:08:30]} a5 {[%emt 0:09:30]} 12. d5 {[%emt 0:04:30]} a4 {[%emt 0:08:30]} 13. Qd3 {[%emt 0:01:30]} exd5 {[%emt 0:01:30]} 14. cxd5 {[%emt 0:00:30]} Nb8 {[%emt 0:10:30]} 15. e4 {[%emt 0:14:30]} Na6 {[%emt 0:06:30]} 16. Rfe1 {[%emt 0:04:30]} Rfe8 {[%emt 0:13:06]} 17. axb4 {[%emt 0:11:30]} Nxb4 {[%emt 0:00:49]} 18. Qc3 {[%emt 0:01:30]} Na6 {[%emt 0:00:33]} 19. h3 {[%emt 0:04:30]} Rac8 {[%emt 0:05:51]} 20. Qa3 {[%emt 0:02:30]} b5 {[%emt 0:01:06]} 21. Nd4 {[%emt 0:04:08]} b4 {[%emt 0:02:02]} 22. Qe3 {[%emt 0:00:33]} Qd8 {[%emt 0:00:49]} 23. Qd3 {[%emt 0:05:34]} Nc5 {[%emt 0:01:48]} 24. Qf1 {[%emt 0:04:16]} Qb6 {[%emt 0:02:04]} 25. Rad1 {[%emt 0:02:25]} Ra8 {[%emt 0:02:48]} 26. Kh2 {[%emt 0:02:16]} a3 {[%emt 0:01:54]} 27. b3 {[%emt 0:03:01]} a2 {[%emt 0:01:05]} 28. Nc4 {[%emt 0:02:14]} Qb8 {[%emt 0:00:31]} 29. f3 {[%emt 0:00:51]} Bb5 {[%emt 0:00:55]} 30. Ra1 {[%emt 0:01:10]} Nfd7 {[%emt 0:00:57]} 31. Rec1 {[%emt 0:00:31]} Ne5 {[%emt 0:00:22]} 32. Nxb5 {[%emt 0:00:55]} Qxb5 {[%emt 0:00:05]} 33. Qd1 {[%emt 0:00:03]} Nxc4 {[%emt 0:01:05]} 34. Bf1 {[%emt 0:00:32]} Ra3 {[%emt 0:01:22]} 35. Bxc4 {[%emt 0:00:09]} Qb6 {[%emt 0:00:00]} 36. Rc2 {[%emt 0:00:38]} Rea8 {[%emt 0:00:46]} 37. Rb2 {[%emt 0:00:09]} Nd7 {[%emt 0:00:23]} 38. Kg2 {[%emt 0:01:32]} Ne5 {[%emt 0:00:22]} 39. Be2 {[%emt 0:00:00]} Qe3 {[%emt 0:00:38]} 40. Qc2 {[%emt 0:00:22]} Qa7 {[%emt 0:00:32]} 41. Bb5 {[%emt 0:00:41]} h5 {[%emt 0:00:28]} 42. f4 {[%emt 0:00:17]} Ng6 {[%emt 0:00:27]} 43. h4 {[%emt 0:00:24]} Qe3 {[%emt 0:00:29]} 44. Qd3 {[%emt 0:00:42]} Qxd3 {[%emt 0:00:50]} 45. Bxd3 {[%emt 0:00:01]} R8a5 {[%emt 0:00:13]} 46. Bc4 {[%emt 0:01:20]} Nf8 {[%emt 0:00:24]} 47. e5 {[%emt 0:00:00]} Nd7 {[%emt 0:00:19]} 48. e6 {[%emt 0:00:44]} Nf6 {[%emt 0:00:37]} 49. e7 {[%emt 0:00:34]} Ne8 {[%emt 0:00:30]} 50. Kf3 {[%emt 0:00:26]} f6 {[%emt 0:00:18]} 51. Re2 {[%emt 0:00:30]} Kf7 {[%emt 0:00:43]} 52. g4 {[%emt 0:00:19]} hxg4+ {[%emt 0:00:53]} 53. Kxg4 {[%emt 0:00:30]} Ra7 {[%emt 0:00:30]} 54. h5 {[%emt 0:00:30]} Rxe7 {[%emt 0:00:30]} 55. Raxa2 {[%emt 0:00:30]} Rea7 {[%emt 0:00:30]} 56. Rad2 {[%emt 0:00:30]} Ra1 {[%emt 0:00:30]} 57. Bd3 {[%emt 0:00:30]} Rg1+ {[%emt 0:00:30]} 58. Kf3 {[%emt 0:00:30]} Ra8 {[%emt 0:00:30]} 59. Bg6+ {[%emt 0:00:30]} Kf8 {[%emt 0:00:30]} 60. Ra2 {[%emt 0:00:30]} Rc8 {[%emt 0:00:30]} 61. Rac2 {[%emt 0:00:30]} Rf1+ {[%emt 0:00:30]} 62. Kg3 {[%emt 0:00:30]} Rd8 {[%emt 0:00:30]} 63. f5 {[%emt 0:00:30]} Rd1 {[%emt 0:00:30]} 64. Red2 {[%emt 0:00:30]} Rxd2 {[%emt 0:00:30]} 65. Rxd2 {[%emt 0:00:30]} Rc8 {[%emt 0:00:30]} 66. Kf4 {[%emt 0:00:30]} Nc7 {[%emt 0:00:30]} 67. Rd4 {[%emt 0:00:30]} Na6 {[%emt 0:00:30]} 68. Kg4 {[%emt 0:00:30]} Rb8 {[%emt 0:00:30]} 69. Re4 {[%emt 0:00:30]} Nc7 {[%emt 0:00:30]} 70. h6 {[%emt 0:00:30]} gxh6 {[%emt 0:00:30]} 71. Kh5 {[%emt 0:00:30]} Nxd5 {[%emt 0:00:30]} 72. Kxh6 {[%emt 0:00:30]} Ne7 {[%emt 0:00:30]} 73. Re6 {[%emt 0:00:30]} Ng8+ {[%emt 0:00:30]} 74. Kh7 {[%emt 0:00:30]} Rd8 {[%emt 0:00:30]} 75. Re4 {[%emt 0:00:30]} d5 {[%emt 0:00:30]} 76. Rxb4 {[%emt 0:00:30]} d4 {[%emt 0:00:00]} 77. Rb7 {[%emt 0:00:30]} Ne7 {[%emt 0:00:22]} 78. Rb6 {[%emt 0:00:30]} Nd5 {[%emt 0:00:22]} 79. Rb7 {[%emt 0:00:07]} Ne7 {[%emt 0:00:30]} 80. Bh5 {[%emt 0:00:30]} d3 {[%emt 0:00:30]} 81. Rb6 {[%emt 0:00:30]} Nd5 {[%emt 0:00:30]} 82. Re6 {[%emt 0:00:30]} Nf4 {[%emt 0:00:30]} 83. Rxf6+ {[%emt 0:00:30]} Ke7 {[%emt 0:00:11]} 84. Rf7+ {[%emt 0:00:24]} Ke8 {[%emt 0:00:56]} 85. Bg6 {[%emt 0:00:27]} Nxg6 {[%emt 0:00:54]} 86. fxg6 {[%emt 0:01:03]} d2 {[%emt 0:00:02]} 87. Rf1 {[%emt 0:00:10]} d1=Q {[%emt 0:00:32]} 88. Rxd1 {[%emt 0:00:30]} Rxd1 {[%emt 0:00:30]} 89. g7 {[%emt 0:00:30]} Rh1+ {[%emt 0:00:00]} 90. Kg6 {[%emt 0:00:00]} Rg1+ {[%emt 0:00:00]} 91. Kf6 {[%emt 0:00:04]} Kd7 {[%emt 0:00:45]} 92. Kf7 {[%emt 0:00:16]} Rf1+ {[%emt 0:00:27]} 93. Kg6 {[%emt 0:00:03]} 1/2-1/2

[Event "10th Cesme Open-A 2024"]
[Site "Cesme"]
[Date "2024.06.23"]
[Round "1"]
[White "Erten, Kerem"]
[Black "Zerey, Demhat"]
[Result "0-1"]
[ECO "C77"]
[WhiteElo "2277"]
[BlackElo "2038"]
[Annotator "RC"]
[PlyCount "70"]
[EventDate "2024.06.23"]
[EventType "swiss"]
[EventCountry "TUR"]
[SourceTitle "playchess.com"]
[Source "ChessBase"]
[SourceQuality "1"]
[TimeControl "5400+30"]

1. e4 {[%emt 0:01:00]} e5 {[%emt 0:01:00]} 2. Nf3 {[%emt 0:00:30]} Nc6 {[%emt 0:00:30]} 3. Bb5 {[%emt 0:05:30]} a6 {[%emt 0:00:30]} 4. Ba4 {[%emt 0:00:00]} Nf6 {[%emt 0:00:30]} 5. d3 {[%emt 0:00:00]} b5 {[%emt 0:02:30]} 6. Bb3 {[%emt 0:00:30]} Bc5 {[%emt 0:01:30]} 7. c3 {[%emt 0:00:30]} d6 {[%emt 0:01:30]} 8. a4 {[%emt 0:00:30]} Rb8 {[%emt 0:00:30]} 9. h3 {[%emt 0:01:30]} O-O {[%emt 0:05:30]} 10. O-O {[%emt 0:00:30]} h6 {[%emt 0:02:30]} 11. d4 {[%emt 0:04:30]} Bb6 {[%emt 0:03:30]} 12. Be3 {[%emt 0:09:30]} Re8 {[%emt 0:02:30]} 13. Nbd2 {[%emt 0:01:30]} exd4 {[%emt 0:06:30]} 14. cxd4 {[%emt 0:00:30]} Bb7 {[%emt 0:05:30]} 15. Re1 {[%emt 0:14:30]} Nb4 {[%emt 0:08:30]} 16. axb5 {[%emt 0:08:30]} axb5 {[%emt 0:03:30]} 17. d5 {[%emt 0:01:30]} Nd3 {[%emt 0:03:30]} 18. Re2 {[%emt 0:01:30]} Nxb2 {[%emt 0:01:30]} 19. Qc2 {[%emt 0:01:30]} Na4 {[%emt 0:01:30]} 20. Bxa4 {[%emt 0:01:30]} bxa4 {[%emt 0:00:00]} 21. Rxa4 {[%emt 0:01:30]} Nd7 {[%emt 0:04:00]} 22. Nb3 {[%emt 0:04:30]} Qc8 {[%emt 0:06:30]} 23. Nfd4 {[%emt 0:07:30]} Bxd4 {[%emt 0:07:30]} 24. Nxd4 {[%emt 0:08:30]} Nc5 {[%emt 0:03:30]} 25. Nf5 {[%emt 0:03:30]} Nxa4 {[%emt 0:03:30]} 26. Qxa4 {[%emt 0:03:10]} Re5 {[%emt 0:01:30]} 27. Rc2 {[%emt 0:05:09]} Bxd5 {[%emt 0:03:30]} 28. Nxh6+ {[%emt 0:00:15]} gxh6 {[%emt 0:02:56]} 29. exd5 {[%emt 0:00:03]} Rxd5 {[%emt 0:02:14]} 30. Bxh6 {[%emt 0:01:20]} Qe6 {[%emt 0:00:31]} 31. Qh4 {[%emt 0:03:45]} Qg6 {[%emt 0:01:59]} 32. Rc4 {[%emt 0:04:32]} Rh5 {[%emt 0:01:10]} 33. Qe7 {[%emt 0:00:09]} Rxh6 {[%emt 0:00:20]} 34. Qxc7 {[%emt 0:02:08]} Rb1+ {[%emt 0:00:30]} 35. Kh2 {[%emt 0:00:00]} Rxh3+ {[%emt 0:00:00]} 0-1

[Event "10th Cesme Open-A 2024"]
[Site "Cesme"]
[Date "2024.06.23"]
[Round "1"]
[White "Jafarli, Babak"]
[Black "Kovalev, Vladislav"]
[Result "0-1"]
[ECO "A01"]
[WhiteElo "2192"]
[BlackElo "2559"]
[Annotator "TA"]
[PlyCount "50"]
[EventDate "2024.06.23"]
[EventType "swiss"]
[EventCountry "TUR"]
[SourceTitle "playchess.com"]
[Source "ChessBase"]
[SourceQuality "1"]
[TimeControl "5400+30"]

{[%evp 9,50,-8,-13,-14,-24,-29,-28,-47,-25,-63,-25,-77,-2,-52,-45,-54,-47,-70,-64,-93,-103,-117,-87,-104,-95,-316,-306,-387,-363,-368,-370,-377,-216,-203,-200,-227,-240,-247,-240,-243,-243,-377,-356]} 1. b3 {[%emt 0:01:00]} d6 {[%emt 0:01:00]} 2. Bb2 {[%emt 0:00:30]} Nd7 {[%emt 0:00:30]} 3. e3 {[%emt 0:00:30]} Ngf6 {[%emt 0:00:30]} 4. f4 {[%emt 0:00:30]} g6 {[%emt 0:01:30]} 5. Nf3 {[%emt 0:00:30]} Bg7 {[%emt 0:00:30]} 6. g3 {[%emt 0:00:30] [#]} e5 $1 {[%emt 0:03:30]} 7. Bg2 {[%emt 0:01:30][%cal Rf4e5]} (7. fxe5 dxe5) 7... O-O {[%emt 0:03:30]} 8. O-O {[%emt 0:00:30] Black has an edge.} Re8 {[%emt 0:01:30]} 9. a4 {[%emt 0:01:30]} a5 {[%emt 0:00:30]} 10. Na3 {[%emt 0:02:30] [#]} (10. d3 $11 {keeps the balance.}) 10... exf4 {[%emt 0:02:30]} (10... e4 $1 $17 {[%cal Re4f3]} 11. Nd4 d5) 11. gxf4 {[%emt 0:01:30]} ({Better is} 11. exf4 $11 c6 12. Re1) 11... Nc5 {[%emt 0:04:30]} 12. Qe1 {[%emt 0:06:30]} c6 {[%emt 0:02:30]} 13. Qh4 {[%emt 0:10:30]} d5 {[%emt 0:07:30]} 14. Rae1 {[%emt 0:01:30]} Nce4 {[%emt 0:03:30]} 15. Ng5 {[%emt 0:08:30]} Nh5 {[%emt 0:34:30]} 16. Bxg7 {[%emt 0:00:30]} Kxg7 {[%emt 0:00:30]} 17. Bxe4 {[%emt 0:00:30] Loses the game.} (17. Nb1 $17) 17... dxe4 $19 {[%emt 0:00:30]} (17... Rxe4 18. d3 Rb4 19. Rc1 $19) 18. f5 {[%emt 0:00:00][%cal Of5f6]} h6 {[%emt 0:03:30]} (18... Qxd2 19. Nc4 (19. Nxe4 Qd5 $15) 19... Qb4 20. fxg6 (20. Nxe4 Kg8 $16) 20... fxg6 21. Rf7+ (21. Nxe4 Qe7 $11) 21... Kg8 22. Ref1 $18 (22. Rxh7 Re7 $16)) (18... Bxf5 19. Rxf5 f6 20. Nh3 $16) 19. f6+ {[%emt 0:03:00]} Nxf6 {[%emt 0:01:30]} 20. Nh3 {[%emt 0:01:30]} Nh5 {[%emt 0:01:30]} ({Much less strong is} 20... Bxh3 21. Qxh3 Qxd2 22. Nc4 $19) (20... Re5 $142 {[%cal Oc8h3] White must now prevent ...Bxh3!} 21. Nc4 Rc5 (21... Rh5 $2 22. Qxf6+ Qxf6 23. Rxf6 $19)) 21. Qxd8 {[%emt 0:00:00]} Rxd8 {[%emt 0:00:30]} 22. Nf4 {[%emt 0:00:00]} Nxf4 {[%emt 0:00:30]} 23. Rxf4 {[%emt 0:00:30]} Rxd2 {[%emt 0:01:30]} 24. Rxe4 {[%emt 0:00:30]} Be6 {[%emt 0:00:00]} 25. Re5 {[%emt 0:00:30]} (25. Rd4 {was necessary.} Rd8 (25... Rxd4 $2 26. exd4 Rd8 27. Rd1 $19) 26. Rxd8 Rxd8 27. Rf1) 25... b6 {[%emt 0:02:00] Weighted Error Value: White=0.49/Black=0.30.  Loses game:     	White=1     	---        Mistake:       	White=3     	Black=2      Inaccurate:     	White=2     	Black=1      OK:         	White=4     	Black=7      Best:        	White=1     	Black=2} 0-1

[Event "10th Cesme Open-A 2024"]
[Site "Cesme"]
[Date "2024.06.23"]
[Round "1"]
[White "Ozen, Metehan"]
[Black "Kharitonov, Alexandr"]
[Result "0-1"]
[ECO "B12"]
[WhiteElo "2160"]
[BlackElo "2522"]
[Annotator "TA"]
[PlyCount "149"]
[EventDate "2024.06.23"]
[EventType "swiss"]
[EventCountry "TUR"]
[SourceTitle "playchess.com"]
[Source "ChessBase"]
[SourceQuality "1"]
[TimeControl "5400+30"]

{[%evp 32,149,-6,-1,-10,-68,-58,-61,-60,-137,-14,-29,-29,-29,0,0,0,0,41,35,42,18,21,0,0,0,0,0,0,-8,-12,-5,-5,-12,-12,-12,-5,-12,-4,-4,0,-4,0,-5,-5,-5,-5,-2,0,0,-5,-5,-5,-5,-5,-12,-5,-12,-12,-12,-12,-12,-5,-12,-12,-12,-12,-12,-12,-12,-12,-12,-12,-12,-12,-18,-8,-61,-8,-8,-8,-59,-59,-66,-67,-86,-86,-87,-86,-86,-76,-76,-76,-90,-83,-100,-90,-105,-106,-110,-78,-98,-98,-104,-103,-112,-97,-101,-110,-99,-100,-454,-549,-447,-439,-29979,-29980,-29980,-29981,-29981]} 1. e4 {[%emt 0:01:00]} c6 {[%emt 0:01:00]} 2. d4 {[%emt 0:00:30]} d5 {[%emt 0:00:30]} 3. e5 {[%emt 0:00:00]} Bf5 {[%emt 0:00:00]} 4. h4 {[%emt 0:00:00]} h5 {[%emt 0:04:00]} 5. Bd3 {[%emt 0:00:00]} Bxd3 {[%emt 0:00:30]} 6. Qxd3 {[%emt 0:00:00]} e6 {[%emt 0:00:30]} 7. Bg5 {[%emt 0:00:30] B12: Caro-Kann: Advance Variation.} Qa5+ {[%emt 0:02:30]} 8. Nd2 {[%emt 0:00:30]} Qa6 {[%emt 0:00:30]} 9. c4 {[%emt 0:00:30]} Nd7 {[%emt 0:03:30]} 10. Ngf3 {[%emt 0:01:30]} Ne7 {[%emt 0:05:30]} 11. O-O {[%emt 0:01:30]} Nf5 {[%emt 0:02:30]} 12. Rfe1 {[%emt 0:09:30]} Bb4 {[%emt 0:02:30]} 13. b3 {[%emt 0:00:30]} c5 $146 {[%emt 0:05:30]} ({Predecessor:} 13... Nb6 14. a3 Be7 15. Qc3 dxc4 16. bxc4 Bxg5 17. hxg5 O-O-O 18. a4 Nd7 19. Ne4 Rhf8 {1-0 Zhu,J (2360)-Bao,Q (2434) Xingtai op 2018 (4)}) 14. a3 {[%emt 0:02:30]} dxc4 {[%emt 0:11:30]} 15. bxc4 {[%emt 0:01:30]} Bxd2 {[%emt 0:00:00]} 16. Bxd2 {[%emt 0:00:30]} cxd4 {[%emt 0:02:00]} 17. Bb4 $1 {[%emt 0:00:30]} Rd8 {[%emt 0:04:30]} 18. Qe4 {[%emt 0:11:30]} (18. Nxd4 Nb8 19. Bd6 Nxd6 (19... Nxh4 $2 20. Qg3 $18) 20. exd6 Qxd6 $17) (18. Rac1 $11) 18... Nb8 {[%emt 0:05:30]} 19. Rab1 {[%emt 0:01:30]} Nc6 {[%emt 0:00:30]} 20. Bc5 {[%emt 0:01:30]} (20. Rec1 $15) 20... Qa5 {[%emt 0:10:30]} (20... Qxc4 $17 21. Rec1 Qa6) 21. Rb5 {[%emt 0:01:30]} Qc7 {[%emt 0:00:30]} 22. a4 {[%emt 0:00:30]} b6 {[%emt 0:01:30]} (22... a6 $5 23. Bb6 Qd7 $11) 23. Ba3 {[%emt 0:02:30]} Nce7 {[%emt 0:03:30]} 24. c5 {[%emt 0:00:30]} O-O {[%emt 0:00:30]} 25. cxb6 {[%emt 0:00:30]} axb6 {[%emt 0:00:00]} 26. a5 $1 {[%emt 0:00:30]} Rb8 {[%emt 0:02:00]} (26... bxa5 $2 {is the wrong capture.} 27. Rb7 Qc6 28. Rxe7 (28. Bxe7 Qxe4 29. Rxe4 Rb8 $18) 28... Qxe4 29. Rxe4 $18) (26... Qc4 {is interesting.} 27. Rxb6 Rfe8 28. Bxe7 Rxe7 29. a6 Ra7) 27. axb6 {[%emt 0:02:30]} ({Reject} 27. Nxd4 bxa5 28. Nxf5 Nxf5 (28... Rxb5 $2 {perishes.} 29. Nxe7+ Kh8 30. Qe2 $18)) (27. Rc1 {seems wilder.} Qa7 28. Bd6 Rbc8 29. Rxc8 Rxc8 30. Bxe7 Qxe7 31. axb6 Qd8 32. b7) 27... Rxb6 {[%emt 0:00:00]} 28. Rxb6 {[%emt 0:01:30]} Qxb6 {[%emt 0:00:00]} 29. Bxe7 {[%emt 0:01:30]} Nxe7 {[%emt 0:00:30]} 30. Qxd4 {[%emt 0:00:00]} Qxd4 {[%emt 0:00:30]} 31. Nxd4 {[%emt 0:00:00]} Rd8 {[%emt 0:00:30]} 32. Nf3 {[%emt 0:00:00]} Kh7 {[%emt 0:00:30]} 33. g3 {[%emt 0:03:00]} Kg6 {[%emt 0:00:30]} 34. Kg2 {[%emt 0:00:30]} Rd7 {[%emt 0:03:30]} 35. Re4 {[%emt 0:01:30]} Nd5 {[%emt 0:00:30]} 36. Re1 {[%emt 0:02:30]} Rb7 {[%emt 0:00:30]} 37. Re2 {[%emt 0:00:30]} Rc7 {[%emt 0:02:30]} 38. Rb2 {[%emt 0:05:30]} Kf5 {[%emt 0:01:30]} 39. Re2 {[%emt 0:04:30]} Ne7 {[%emt 0:00:30]} 40. Nd4+ {[%emt 0:01:30]} Kg6 {[%emt 0:00:30]} 41. Rb2 {[%emt 0:00:30]} Ng8 {[%emt 0:05:30]} 42. Nf3 {[%emt 0:09:30]} Nh6 {[%emt 0:00:30]} 43. Re2 {[%emt 0:01:30]} Rc5 {[%emt 0:01:30]} 44. Rb2 {[%emt 0:01:30]} Ng4 {[%emt 0:00:30]} 45. Re2 $1 {[%emt 0:00:00]} Rc4 {[%emt 0:01:30]} 46. Ng5 {[%emt 0:04:00]} Rb4 {[%emt 0:01:19]} 47. Kg1 {[%emt 0:00:30]} Rb5 {[%emt 0:00:35]} 48. Nf3 {[%emt 0:00:30]} Rd5 {[%emt 0:00:06]} 49. Re4 $1 {[%emt 0:00:30]} Ra5 {[%emt 0:03:16]} 50. Re2 $1 {[%emt 0:00:30]} Ra4 {[%emt 0:00:00]} 51. Ng5 {[%emt 0:00:30]} Nh6 {[%emt 0:00:48]} 52. Kg2 {[%emt 0:01:30]} Kf5 {[%emt 0:00:14]} 53. Re3 {[%emt 0:00:30]} Ra2 {[%emt 0:01:32]} 54. Re4 {[%emt 0:03:30]} (54. Rf3+ $11 Kg6 55. Nh3) 54... Kg6 {[%emt 0:01:04]} ({Better is} 54... Ra5 $15) 55. Nh3 $11 {[%emt 0:06:30]} Ng4 {[%emt 0:00:29]} 56. Kg1 {[%emt 0:01:41]} ({White should play} 56. Rb4 $11) 56... Ra5 $15 {[%emt 0:00:56]} 57. Nf4+ {[%emt 0:00:26]} Kh6 $1 {[%emt 0:02:05]} 58. Re2 {[%emt 0:01:29]} Nxe5 {[%emt 0:00:37]} 59. Kg2 {[%emt 0:00:26]} Ng4 {[%emt 0:00:58]} 60. Nd3 {[%emt 0:01:31]} g6 {[%emt 0:01:05]} 61. Nf4 {[%emt 0:01:45]} Kg7 {[%emt 0:00:16]} 62. Nd3 {[%emt 0:00:05]} Kf6 {[%emt 0:01:13]} 63. Rb2 {[%emt 0:00:11]} Kf5 {[%emt 0:00:36]} 64. Rb4 {[%emt 0:00:26]} e5 {[%emt 0:00:52]} 65. Rb2 {[%emt 0:00:13]} Ke4 {[%emt 0:01:34]} 66. Ne1 {[%emt 0:00:43]} Kd5 {[%emt 0:00:45]} 67. Nd3 {[%emt 0:01:22]} Kd4 {[%emt 0:00:30]} 68. Ne1 {[%emt 0:00:06]} f6 {[%emt 0:01:28]} 69. Nf3+ {[%emt 0:00:11]} Kc3 {[%emt 0:00:52]} 70. Re2 {[%emt 0:00:04]} Rb5 {[%emt 0:00:13]} 71. Nh2 $2 {[%emt 0:02:29][%mdl 8192] [#]} (71. Ne1 $17 {is a better chance.}) 71... Rb2 $1 $19 {[%emt 0:01:26]} 72. Rxb2 {[%emt 0:01:33]} Kxb2 {[%emt 0:00:30]} 73. Nxg4 {[%emt 0:00:30]} (73. Nf3 $19 Kc2 74. Kg1) 73... hxg4 {[%emt 0:00:00]} 74. f3 {[%emt 0:00:27]} gxf3+ {[%emt 0:00:39]} 75. Kxf3 {[%emt 0:00:30]} 0-1

[Event "10th Cesme Open-A 2024"]
[Site "Cesme"]
[Date "2024.06.23"]
[Round "1"]
[White "Maruflu, Enes Yusuf"]
[Black "Gholami, Aryan"]
[Result "1/2-1/2"]
[ECO "B41"]
[WhiteElo "2141"]
[BlackElo "2481"]
[Annotator "TA"]
[PlyCount "75"]
[EventDate "2024.06.23"]
[EventType "swiss"]
[EventCountry "TUR"]
[SourceTitle "playchess.com"]
[Source "ChessBase"]
[SourceQuality "1"]
[TimeControl "5400+30"]

{[%evp 14,75,56,56,56,61,51,45,54,45,56,59,51,40,52,40,46,33,35,41,75,63,108,108,92,88,107,101,102,101,106,104,106,109,104,93,93,84,88,75,79,70,82,82,95,95,95,80,100,97,92,74,72,71,77,79,77,69,84,82,77,78,82,0]} 1. e4 {[%emt 0:01:00]} c5 {[%emt 0:01:00]} 2. Nf3 {[%emt 0:00:30]} e6 {[%emt 0:00:30]} 3. d4 {[%emt 0:00:30]} cxd4 {[%emt 0:00:30]} 4. Nxd4 {[%emt 0:00:30]} a6 {[%emt 0:00:30]} 5. c4 {[%emt 0:00:30]} Nf6 {[%emt 0:00:30]} 6. Nc3 {[%emt 0:00:30]} Qc7 {[%emt 0:00:30]} 7. a3 {[%emt 0:00:00]} b6 {[%emt 0:00:00]} 8. Be3 {[%emt 0:00:00]} Bb7 {[%emt 0:00:00]} 9. f3 {[%emt 0:00:00]} d6 {[%emt 0:00:30]} 10. Be2 {[%emt 0:00:00]} Nbd7 {[%emt 0:00:30] White is slightly better.} 11. Rc1 {[%emt 0:00:00]} Be7 {[%emt 0:00:00][%cal Bf8e7,Be7d8,Bd8c7][%mdl 32]} 12. O-O {[%emt 0:00:00]} Rc8 {[%emt 0:00:00]} 13. b4 {[%emt 0:00:00][%cal Bb2b4,Bb4b5][%mdl 32]} O-O {[%emt 0:00:30]} 14. Qd2 {[%emt 0:00:00]} Qb8 {[%emt 0:00:30]} 15. Rfd1 {[%emt 0:03:30]} Bd8 {[%emt 0:01:30]} 16. Kh1 {[%emt 0:02:30]} Bc7 {[%emt 0:01:30]} 17. b5 {[%emt 0:03:30] Hoping for bxa6.} a5 {[%emt 0:34:30]} 18. Nc6 {[%emt 0:00:30]} Bxc6 {[%emt 0:00:30]} 19. bxc6 {[%emt 0:00:30]} Nc5 {[%emt 0:00:00] [#]} 20. Rb1 {[%emt 0:00:30] Wards off Nb3} Qa8 {[%emt 0:08:00]} 21. Nb5 {[%emt 0:00:30]} Qxc6 {[%emt 0:00:30]} 22. Na7 {[%emt 0:09:30]} ({And not} 22. Nxd6 Rcd8 23. e5 Ne8 $17) 22... Qa8 {[%emt 0:01:30]} 23. Nxc8 {[%emt 0:00:30]} Rxc8 {[%emt 0:00:00]} 24. Bd4 {[%emt 0:05:30]} Nfd7 {[%emt 0:02:00]} 25. Bf1 {[%emt 0:01:30] White is more active.} Ne5 {[%emt 0:01:30]} 26. Qe1 {[%emt 0:06:30]} Qc6 {[%emt 0:08:30]} 27. Qe3 {[%emt 0:08:30]} h6 {[%emt 0:08:30]} 28. Qc3 {[%emt 0:28:30]} Na4 {[%emt 0:12:54]} 29. Qb3 {[%emt 0:00:00]} Nc5 {[%emt 0:00:00]} 30. Qb2 {[%emt 0:03:00]} f6 {[%emt 0:02:01]} 31. Qb5 {[%emt 0:03:30]} Qa8 {[%emt 0:00:23]} 32. Rb2 {[%emt 0:06:15][%cal Bb1b2,Bb2d2,Bd2d4][%mdl 32]} Nc6 {[%emt 0:01:18] [#] Strongly threatening ...Na7.} 33. Rbd2 {[%emt 0:00:34]} Nxd4 {[%emt 0:01:12]} 34. Rxd4 {[%emt 0:00:05]} Rd8 {[%emt 0:00:25]} 35. R4d2 {[%emt 0:01:31]} Kf7 {[%emt 0:02:20]} 36. g3 {[%emt 0:06:04] White is better.} Ke7 {[%emt 0:01:03]} 37. Bg2 {[%emt 0:01:07]} Qa6 {[%emt 0:04:04]} 38. Bf1 {[%emt 0:07:19] Weighted Error Value: White=0.06 (flawless) /Black=0.07 (flawless) .  Mistake:       	White=1     	---        Inaccurate:     	---       	Black=2      OK:         	White=10    	Black=11     Best:        	White=1     	---} ({White should play} 38. Qxa6 $16 Nxa6 39. f4) 1/2-1/2